bitfinex-derivatives/quotes_SOLF0:USTF0_20250626
["timestamp","ask_amount","ask_price","bid_price","bid_amount"]
[1750953113854,7.0025,142.76,142.73,7.0034]
[1750953114054,38.66,142.77,142.71,45.40279943]
[1750953114250,4.97044514,142.76,142.71,45.40279943]
[1750953114458,7.0022,142.77,142.74,7.0032]
[1750953114646,4.9699825,142.76,142.74,7.0032]
[1750953114846,7.0022,142.77,142.74,7.0032]
[1750953115043,4.96993459,142.76,142.74,7.0032]
[1750953115248,7.0022,142.77,142.74,7.0032]
[1750953115455,4.96833862,142.76,142.74,7.0032]
[1750953115653,7.0015,142.78,142.75,7.0028]
[1750953115854,4.96944299,142.77,142.75,7.0028]
[1750953116043,7.0015,142.78,142.75,7.0028]
[1750953116249,4.96631386,142.77,142.75,7.0028]
[1750953116450,7.0015,142.78,142.75,7.0028]
[1750953116761,4.96600934,142.77,142.75,7.0028]
[1750953116963,7.0015,142.78,142.75,7.0028]
[1750953117361,7.0018,142.77,142.75,7.0028]
[1750953117663,4.44814338,142.79,142.75,7.0028]
[1750953117960,12.86639248,142.78,142.75,7.0028]
[1750953118160,7.0016,142.78,142.75,7.0028]
[1750953118359,4.44814338,142.79,142.75,7.0028]
[1750953118660,5.82130191,142.78,142.75,7.0028]
[1750953118862,4.44720958,142.79,142.75,7.0028]
[1750953119063,5.8192387,142.78,142.75,7.0028]
[1750953119360,4.44720958,142.79,142.75,7.0028]
[1750953119563,7.0019,142.77,142.75,7.0028]
[1750953120061,7.0023,142.76,142.74,7.0031]
[1750953121861,7.0023,142.76,142.73,7.0035]
[1750953122161,7.0023,142.76,142.71,38.66]
[1750953122460,7.002,142.77,142.74,7.003]
[1750953122660,7.002,142.77,142.72,6.74279943]
[1750953123458,7.002,142.77,142.73,7.0036]
[1750953123766,7.0027,142.76,142.71,38.66]
[1750953123952,5.82390356,142.78,142.72,7.004]
[1750953124154,5.82390356,142.77,142.72,7.004]
[1750953124351,43.3427,142.8,142.72,7.004]
[1750953124558,5.82379508,142.79,142.72,7.004]
[1750953124863,15.47616403,142.78,142.71,38.66]
[1750953125059,5.20333695,142.77,142.72,6.74279943]
[1750953125258,5.82498405,142.79,142.72,6.74279943]
[1750953125462,7.0018,142.77,142.74,7.003]
[1750953126050,7.0018,142.77,142.75,7.0028]
[1750953126257,38.66,142.8,142.74,6.74279943]
[1750953126462,5.2016404,142.79,142.76,7.0019]
[1750953126662,7.0001,142.81,142.75,38.66]
[1750953126861,5.20361174,142.8,142.75,38.66]
[1750953127063,7.0001,142.81,142.77,7.0016]
[1750953127267,12.20516112,142.8,142.77,7.0016]
[1750953127463,7.0006,142.8,142.75,38.66]
[1750953127760,7.0006,142.8,142.77,7.0016]
[1750953128154,5.73985578,142.81,142.75,38.66]
[1750953128356,5.20487652,142.8,142.75,38.66]
[1750953128568,7.0012,142.79,142.76,7.0021]
[1750953131058,6.74279943,142.81,142.75,38.66]
[1750953131255,15.41996386,142.8,142.72,38.4]
[1750953131471,9.65983735,142.79,142.72,38.4]
[1750953131766,5.20616912,142.78,142.72,38.4]
[1750953131966,5.20616912,142.77,142.72,38.4]
[1750953132162,7.0019,142.77,142.74,7.0031]
[1750953132368,4.49450704,142.79,142.74,7.0031]
[1750953132571,5.21198386,142.78,142.74,7.0031]
[1750953132866,5.21198386,142.77,142.74,7.0031]
[1750953133066,5.21198386,142.76,142.74,7.0031]
[1750953133266,4.49450704,142.79,142.73,7.0036]
[1750953133461,15.42516513,142.78,142.72,38.4]
[1750953133668,5.20979804,142.77,142.72,38.4]
[1750953133868,5.20979804,142.76,142.74,7.0029]
[1750953134169,4.49450704,142.79,142.72,38.4]
[1750953134372,7.002,142.77,142.72,38.4]
[1750953134671,5.2103153,142.76,142.72,38.4]
[1750953134873,11.45790076,142.78,142.73,4.49450704]
[1750953135175,5.21134104,142.77,142.75,7.0026]
[1750953135367,5.21134104,142.76,142.75,7.0026]
[1750953135974,5.21134104,142.76,142.74,7.0031]
[1750953136272,7.0022,142.77,142.74,7.0031]
[1750953136460,5.21079945,142.76,142.74,7.0031]
[1750953136773,7.0023,142.77,142.74,7.0031]
[1750953136969,5.20862211,142.76,142.74,7.0031]
[1750953137170,7.0023,142.77,142.74,7.0031]
[1750953137372,5.20862211,142.76,142.74,7.0031]
[1750953137571,7.0023,142.77,142.74,7.0031]
[1750953137773,7.0023,142.77,142.72,42.89450704]
[1750953137774,5.20871448,142.76,142.75,7.0028]
[1750953138371,7.0023,142.77,142.75,7.0028]
[1750953139276,7.0023,142.77,142.74,7.0031]
[1750953139977,7.0023,142.77,142.75,7.0028]
[1750953140367,7.0023,142.77,142.72,42.89450704]
[1750953140569,7.0023,142.77,142.74,7.0029]
[1750953141069,7.0023,142.77,142.72,42.89450704]
[1750953141368,7.0023,142.77,142.75,7.0025]
[1750953142379,7.0023,142.77,142.74,7.0031]
[1750953142580,7.0023,142.77,142.68,800.70808924]
[1750953142581,14.0064,142.75,142.64,13.06448924]
[1750953142770,185.18352526,142.76,142.57,21.69941409]
[1750953142771,4.50375818,142.65,142.59,2.3208]
[1750953142972,4.50375818,142.63,142.59,2.3208]
[1750953143173,11.51285818,142.63,142.59,2.3208]
[1750953143575,13.18513472,142.72,142.59,2.3208]
[1750953143774,4.50375818,142.68,142.6,4.50375818]
[1750953144179,4.50375818,142.68,142.63,7.0084]
[1750953144372,7.0068,142.67,142.63,7.0084]
[1750953144878,7.0068,142.67,142.51,13.06139787]
[1750953144879,4.50841414,142.64,142.51,13.06139787]
[1750953145180,4.50841414,142.55,142.47,9.38931414]
[1750953145379,7.0132,142.54,142.47,47.78931414]
[1750953145575,38.4,142.57,142.47,43.2809]
[1750953145576,4.50841414,142.56,142.47,43.2809]
[1750953145881,4.50841414,142.56,142.52,7.0139]
[1750953146083,4.50841414,142.56,142.49,4.50841414]
[1750953146273,4.50841414,142.56,142.47,43.2809]
[1750953146478,4.50841414,142.56,142.52,7.0137]
[1750953146974,4.50841414,142.56,142.53,7.0136]
[1750953147578,4.6421,142.63,142.51,42.90841414]
[1750953147774,4.50841414,142.6,142.51,42.90841414]
[1750953147983,4.50841414,142.58,142.51,42.90841414]
[1750953148175,11.51991414,142.58,142.54,7.0128]
[1750953148376,38.4,142.62,142.51,38.4]
[1750953148377,6.76097282,142.59,142.51,38.4]
[1750953148876,6.76097282,142.59,142.54,7.0127]
[1750953149189,6.76097282,142.59,142.51,38.4]
[1750953149481,13.77097282,142.61,142.56,7.0119]
[1750953149682,6.76097282,142.61,142.52,6.76097282]
[1750953149880,11.40307282,142.63,142.54,6.76097282]
[1750953150078,49.82307282,142.63,142.54,6.76097282]
[1750953150280,43.0621,142.63,142.55,38.42]
[1750953150477,43.0621,142.63,142.55,40.7118]
[1750953150981,43.0621,142.63,142.6,7.01]
[1750953151584,50.0707,142.63,142.59,7.0101]
[1750953151777,43.0621,142.63,142.55,40.7118]
[1750953152286,43.0621,142.63,142.59,7.0098]
[1750953152479,6.76097282,142.6,142.49,45.18097282]
[1750953152681,38.42,142.6,142.51,6.76097282]
[1750953153179,45.4301,142.6,142.55,7.0119]
[1750953154488,7.0102,142.59,142.56,7.0115]
[1750953155186,45.4297,142.6,142.56,7.0115]
[1750953155484,38.42,142.6,142.55,7.0119]
[1750953156391,38.42,142.6,142.56,7.0115]
[1750953156984,6.76097282,142.61,142.56,7.0115]
[1750953157385,7.0099,142.6,142.56,7.0115]
[1750953159886,6.76097282,142.59,142.48,47.49277282]
[1750953160091,6.76097282,142.59,142.5,6.76097282]
[1750953160092,38.44,142.58,142.5,6.76097282]
[1750953160785,7.0114,142.57,142.53,7.013]
[1750953161591,6.76097282,142.57,142.48,47.49277282]
[1750953161892,6.76097282,142.55,142.48,40.7318]
[1750953162087,2.3916,142.56,142.5,6.76097282]
[1750953162595,7.0122,142.55,142.52,7.0133]
[1750953162887,2.267,142.57,142.5,6.76097282]
[1750953163397,38.32,142.58,142.51,6.76097282]
[1750953163892,38.32,142.58,142.54,7.0123]
[1750953164589,7.0114,142.57,142.53,7.0129]
[1750953165189,7.0116,142.56,142.53,7.0129]
[1750953165678,7.0114,142.57,142.54,7.0126]
[1750953166496,7.0114,142.57,142.53,7.0129]
[1750953167285,7.0116,142.56,142.53,7.0129]
[1750953167486,7.0116,142.56,142.52,45.3333]
[1750953167690,7.0116,142.56,142.52,38.32]
[1750953167990,7.0116,142.56,142.52,45.3332]
[1750953168692,7.0116,142.56,142.53,7.0129]
[1750953168892,7.0116,142.56,142.52,38.32]
[1750953169093,7.0121,142.55,142.52,45.3333]
[1750953170696,7.0118,142.56,142.53,7.0131]
[1750953171294,7.0113,142.57,142.52,38.32]
[1750953171986,7.0113,142.57,142.53,7.0128]
[1750953172188,11.51862639,142.58,142.52,42.82762639]
[1750953172685,7.011,142.58,142.55,7.012]
[1750953174297,7.0115,142.57,142.54,7.0123]
[1750953176392,11.51852639,142.58,142.55,7.012]
[1750953176696,7.0099,142.6,142.57,7.0108]
[1750953176898,2.267,142.61,142.55,4.50762639]
[1750953177090,2.267,142.61,142.5,4.7051]
[1750953177091,42.82762639,142.64,142.57,4.50762639]
[1750953177491,7.0089,142.62,142.59,7.0099]
[1750953177896,7.0089,142.62,142.57,4.50762639]
[1750953177897,38.32,142.64,142.57,4.50762639]
[1750953178091,7.0077,142.64,142.61,7.0089]
[1750953178291,2.3635,142.65,142.61,7.0089]
[1750953178492,2.3635,142.65,142.59,4.50762639]
[1750953178797,2.3403,142.67,142.59,4.50762639]
[1750953179003,2.3403,142.67,142.62,7.0084]
[1750953179313,2.3403,142.67,142.61,4.50762639]
[1750953179504,42.82762639,142.68,142.61,4.50762639]
[1750953179702,12.30729966,142.67,142.63,7.0078]
[1750953179909,7.0065,142.67,142.63,7.0078]
[1750953180293,7.0067,142.66,142.63,7.0078]
[1750953182101,4.50762639,142.7,142.63,4.50762639]
[1750953182298,5.30174919,142.69,142.65,4.50762639]
[1750953182602,7.0051,142.7,142.66,7.0066]
[1750953182802,5.30564837,142.69,142.66,7.0066]
[1750953182998,7.0051,142.7,142.66,7.0066]
[1750953183203,5.30564837,142.69,142.66,7.0066]
[1750953183403,2.3018,142.74,142.67,4.50762639]
[1750953183601,7.69787907,142.73,142.67,4.50762639]
[1750953183803,5.28769575,142.72,142.67,4.50762639]
[1750953184105,7.004,142.72,142.69,7.0049]
[1750953184609,5.28951389,142.71,142.69,7.0049]
[1750953184803,7.0035,142.73,142.69,7.0049]
[1750953185107,5.31429627,142.72,142.69,7.0049]
[1750953185300,5.31429627,142.71,142.69,7.0049]
[1750953185500,7.0035,142.73,142.69,7.0049]
[1750953185501,7.0038,142.72,142.69,7.0049]
[1750953186008,5.36339872,142.71,142.69,7.0049]
[1750953186207,7.0038,142.72,142.69,7.0049]
[1750953186413,5.36336582,142.71,142.68,45.3055]
[1750953186608,5.36336582,142.71,142.68,38.3]
[1750953187608,5.36336582,142.71,142.69,7.0051]
[1750953187798,5.36336582,142.7,142.69,7.0051]
[1750953188309,7.0035,142.73,142.69,7.0051]
[1750953188608,5.36774992,142.72,142.69,7.0051]
[1750953188812,5.36774992,142.71,142.7,7.0047]
[1750953189408,7.0035,142.73,142.7,7.0047]
[1750953189608,5.36611808,142.72,142.7,7.0047]
[1750953189809,7.0035,142.73,142.7,7.0047]
[1750953190005,5.36625774,142.72,142.7,7.0047]
[1750953190213,7.0035,142.73,142.7,7.0047]
[1750953190411,5.36370689,142.72,142.7,7.0047]
[1750953190612,7.0035,142.73,142.7,7.0047]
[1750953190812,5.36433582,142.72,142.7,7.0047]
[1750953191013,7.0035,142.73,142.7,7.0047]
[1750953191214,5.36213149,142.72,142.7,7.0047]
[1750953191413,7.0035,142.73,142.7,7.0047]
[1750953191915,7.003,142.74,142.71,7.0042]
[1750953192113,5.35735913,142.73,142.69,4.50762639]
[1750953192311,2.40847553,142.75,142.69,4.50762639]
[1750953192516,5.35500373,142.74,142.69,4.50762639]
[1750953192718,5.35500373,142.73,142.69,4.50762639]
[1750953192913,7.0036,142.73,142.7,7.0045]
[1750953193119,7.0036,142.73,142.69,4.50762639]
[1750953193120,4.50762639,142.76,142.69,4.50762639]
[1750953193413,7.76320411,142.75,142.69,4.50762639]
[1750953193617,12.35780825,142.74,142.69,4.50762639]
[1750953193818,7.003,142.74,142.69,4.50762639]
[1750953194531,7.003,142.74,142.71,7.0042]
[1750953194824,7.0027,142.75,142.71,7.0042]
[1750953195028,5.25699198,142.76,142.74,7.0024]
[1750953195227,5.25479403,142.77,142.73,4.50762639]
[1750953195427,2.3462,142.78,142.73,42.72762639]
[1750953195629,2.2856,142.79,142.73,42.72762639]
[1750953195929,7.001,142.78,142.75,7.0022]
[1750953196131,7.001,142.78,142.73,42.72762639]
[1750953196323,2.2856,142.79,142.73,42.72762639]
[1750953197128,7.0013,142.77,142.74,7.0024]
[1750953197934,7.0013,142.77,142.73,42.72762639]
[1750953198133,6.79322639,142.79,142.73,38.22]
[1750953198333,6.79322639,142.79,142.74,7.0027]
[1750953198822,7.0017,142.77,142.74,7.0027]
[1750953199520,7.0018,142.76,142.73,45.223]
[1750953200232,7.53925304,142.79,142.73,38.22]
[1750953200429,2.2856,142.79,142.73,38.22]
[1750953200632,45.89262288,142.81,142.74,4.50762639]
[1750953200829,43.47365304,142.81,142.74,4.50762639]
[1750953201032,43.47365304,142.81,142.76,7.0014]
[1750953201033,7.0005,142.79,142.76,7.0014]
[1750953201733,7.0011,142.78,142.75,7.002]
[1750953203332,7.0006,142.79,142.76,7.0016]
[1750953204231,7.0,142.8,142.77,7.0012]
[1750953204439,2.4367,142.82,142.77,45.2012]
[1750953204937,6.9996,142.81,142.77,45.2012]
[1750953206140,6.9996,142.81,142.78,7.0006]
[1750953206443,7.0001,142.8,142.77,38.2]
[1750953206836,7.0001,142.8,142.77,45.201]
[1750953207036,7.0001,142.8,142.77,38.2]
[1750953207234,4.50762639,142.85,142.79,6.9999]
[1750953207431,4.50762639,142.85,142.77,42.70762639]
[1750953208334,6.9986,142.83,142.8,6.9994]
[1750953208543,6.9986,142.83,142.79,4.50762639]
[1750953208931,6.9981,142.84,142.81,6.9989]
[1750953209438,6.9979,142.84,142.81,6.9989]
[1750953209638,4.50762639,142.85,142.81,6.9989]
[1750953210135,6.9979,142.84,142.81,6.9989]
[1750953210435,4.921,142.86,142.79,4.50762639]
[1750953210738,6.9979,142.84,142.82,6.9986]
[1750953210936,6.9979,142.84,142.79,4.50762639]
[1750953210937,38.18,142.9,142.79,4.50762639]
[1750953211144,5.31386965,142.89,142.81,4.50762639]
[1750953211329,6.9966,142.87,142.84,6.9976]
[1750953211532,38.18,142.9,142.84,6.9976]
[1750953211733,6.9962,142.88,142.85,6.997]
[1750953211931,38.18,142.9,142.83,4.50762639]
[1750953212135,5.31513849,142.89,142.82,44.96792639]
[1750953212442,6.9967,142.87,142.84,6.9977]
[1750953212834,4.50762639,142.89,142.82,44.96792639]
[1750953212835,6.997,142.86,142.83,6.9981]
[1750953213036,4.50762639,142.87,142.82,38.18]
[1750953213232,4.50762639,142.85,142.79,38.18]
[1750953213637,6.9987,142.83,142.8,6.9996]
[1750953214137,6.9991,142.82,142.79,45.1801]
[1750953214442,4.50762639,142.82,142.79,38.18]
[1750953214639,4.50762639,142.8,142.73,40.4603]
[1750953214840,4.50762639,142.78,142.73,40.4603]
[1750953215036,4.50762639,142.78,142.75,7.0019]
[1750953215037,11.50872639,142.78,142.75,7.0019]
[1750953215239,7.0011,142.78,142.73,40.4603]
[1750953215742,4.50762639,142.79,142.74,7.0024]
[1750953216141,7.0018,142.76,142.73,45.183]
[1750953217341,6.74218824,142.77,142.73,38.18]
[1750953217936,6.74218824,142.77,142.73,45.1831]
[1750953218142,6.74218824,142.77,142.73,38.18]
[1750953218342,12.27539321,142.76,142.73,38.18]
[1750953218650,7.002,142.76,142.73,45.183]
[1750953219744,7.002,142.76,142.74,7.0026]
[1750953220249,12.28440082,142.75,142.73,45.1831]
[1750953220442,7.0024,142.75,142.73,45.1831]
[1750953220835,7.0015,142.77,142.74,7.0028]
[1750953221039,5.27800627,142.76,142.74,7.0028]
[1750953221240,5.27800627,142.76,142.73,38.18]
[1750953221241,4.62434462,142.78,142.73,38.18]
[1750953221442,7.0021,142.76,142.73,45.183]
[1750953221636,5.21871742,142.75,142.73,45.183]
[1750953221841,7.0021,142.76,142.73,45.183]
[1750953222041,5.23213586,142.75,142.73,45.183]
[1750953222238,6.74218824,142.78,142.73,38.18]
[1750953222444,12.24731073,142.77,142.73,38.18]
[1750953222638,6.74218824,142.78,142.7,38.08]
[1750953222639,18.98884259,142.76,142.7,38.08]
[1750953222854,12.24665435,142.75,142.7,38.08]
[1750953223037,7.670278,142.74,142.7,38.08]
[1750953223237,5.23698608,142.73,142.7,38.08]
[1750953223452,6.74218824,142.76,142.7,38.08]
[1750953223453,7.003,142.74,142.71,7.0041]
[1750953223752,5.23573145,142.73,142.71,7.0041]
[1750953223954,7.003,142.74,142.71,7.0041]
[1750953224153,5.23636466,142.73,142.71,7.0041]
[1750953224346,7.003,142.74,142.72,7.0037]
[1750953224549,38.08,142.78,142.7,38.08]
[1750953224550,44.82218824,142.78,142.7,38.08]
[1750953224853,13.48760456,142.77,142.76,7.0018]
[1750953225148,7.67363447,142.77,142.74,38.08]
[1750953225351,5.23927792,142.76,142.74,38.08]
[1750953225552,7.0008,142.78,142.74,38.08]
[1750953225854,7.2215,142.81,142.74,38.08]
[1750953226051,7.0005,142.79,142.76,7.0015]
[1750953226255,5.23010204,142.78,142.74,38.08]
[1750953226457,5.23178637,142.77,142.74,38.08]
[1750953226653,7.0004,142.79,142.74,38.08]
[1750953226954,7.66714012,142.78,142.74,38.08]
[1750953227260,5.23349231,142.77,142.76,7.0015]
[1750953228356,5.23349231,142.77,142.74,44.82218824]
[1750953228357,7.0001,142.8,142.77,7.0009]
[1750953228658,7.67552914,142.79,142.74,44.82218824]
[1750953228858,5.23502761,142.78,142.77,7.0013]
[1750953229250,42.33508228,142.83,142.74,44.82218824]
[1750953229251,12.81372815,142.82,142.76,6.74218824]
[1750953229554,7.67635262,142.81,142.78,7.0004]
[1750953229754,7.67635262,142.8,142.76,6.74218824]
[1750953229957,7.67635262,142.79,142.76,6.74218824]
[1750953230156,6.9995,142.81,142.78,7.0008]
[1750953230351,7.70415319,142.8,142.78,7.0008]
[1750953230553,7.70415319,142.79,142.78,7.0008]
[1750953231256,6.9991,142.82,142.79,7.0001]
[1750953231461,7.70534117,142.81,142.79,7.0001]
[1750953231760,7.70534117,142.8,142.79,7.0001]
[1750953232462,2.4415612,142.8,142.79,7.0001]
[1750953233663,2.4415612,142.8,142.78,45.0804]
[1750953233863,6.9994,142.81,142.78,45.0804]
[1750953234063,2.44890976,142.8,142.78,38.08]
[1750953234261,5.75679162,142.84,142.78,38.08]
[1750953234463,7.71819729,142.83,142.78,38.08]
[1750953234769,7.71819729,142.82,142.78,38.08]
[1750953234970,2.44973378,142.81,142.8,6.9998]
[1750953236572,2.44973378,142.81,142.78,38.08]
[1750953236771,6.9989,142.82,142.78,38.08]
[1750953237070,2.45053783,142.81,142.78,38.08]
[1750953237272,6.9989,142.82,142.78,38.08]
[1750953237461,4.49085273,142.84,142.8,6.9998]
[1750953237462,2.45097437,142.81,142.8,6.9998]
[1750953238865,5.27306805,142.85,142.82,6.9986]
[1750953239068,7.72493541,142.84,142.82,6.9986]
[1750953239365,2.45186736,142.83,142.82,6.9986]
[1750953239962,2.45186736,142.83,142.79,4.49085273]
[1750953240163,6.998,142.84,142.79,4.49085273]
[1750953240164,2.45186736,142.82,142.79,4.49085273]
[1750953240467,4.49085273,142.88,142.81,4.49085273]
[1750953240772,7.72646784,142.87,142.82,38.08]
[1750953241078,2.45234266,142.86,142.85,6.9974]
[1750953241571,2.45234266,142.86,142.83,4.49085273]
[1750953241871,6.9956,142.89,142.83,4.49085273]
[1750953242060,7.72545551,142.88,142.83,4.49085273]
[1750953242259,2.4520088,142.87,142.83,4.49085273]
[1750953242578,15.54317636,142.92,142.85,4.49085273]
[1750953242868,7.72802597,142.91,142.86,38.06]
[1750953243172,2.45568288,142.9,142.86,38.06]
[1750953243365,2.45568288,142.89,142.88,6.9956]
[1750953244470,2.45568288,142.89,142.87,6.9962]
[1750953244666,4.49085273,142.92,142.87,6.9962]
[1750953244868,7.74619852,142.91,142.87,6.9962]
[1750953245067,6.9962,142.88,142.86,38.06]
[1750953245268,4.49085273,142.88,142.86,38.06]
[1750953245670,4.49085273,142.88,142.82,38.06]
[1750953245868,4.49085273,142.86,142.82,38.06]
[1750953246170,11.48795273,142.86,142.82,38.06]
[1750953246364,11.48795273,142.86,142.83,6.9983]
[1750953246565,4.49085273,142.86,142.82,38.06]
[1750953246768,2.45730591,142.85,142.82,38.06]
[1750953246960,4.49085273,142.86,142.82,38.06]
[1750953246961,4.49085273,142.84,142.82,38.06]
[1750953247167,4.49085273,142.84,142.75,2.3403]
[1750953247381,4.49085273,142.82,142.76,38.06]
[1750953247764,6.9994,142.81,142.76,38.06]
[1750953247961,4.49085273,142.82,142.76,38.06]
[1750953248169,2.46897301,142.81,142.76,38.06]
[1750953248369,6.73841558,142.82,142.76,38.06]
[1750953248575,2.46897089,142.81,142.76,38.06]
[1750953248773,6.73841558,142.82,142.79,7.0002]
[1750953248972,2.46897089,142.81,142.79,7.0002]
[1750953249175,6.73841558,142.82,142.79,7.0002]
[1750953249365,6.73841558,142.8,142.76,38.06]
[1750953250583,6.73841558,142.8,142.76,45.0616]
[1750953251675,6.73841558,142.8,142.76,38.06]
[1750953251881,2.46871605,142.79,142.76,38.06]
[1750953252077,6.73841558,142.8,142.76,38.06]
[1750953252278,2.46876934,142.79,142.76,45.0618]
[1750953252581,6.73841558,142.8,142.76,38.06]
[1750953252775,9.46924064,142.79,142.76,38.06]
[1750953253077,6.73841558,142.8,142.76,45.0615]
[1750953253279,7.0009,142.78,142.76,38.06]
[1750953253480,7.0009,142.78,142.74,629.82]
[1750953253779,6.73841558,142.8,142.76,7.0017]
[1750953253974,7.0008,142.78,142.76,7.0017]
[1750953254678,7.0008,142.78,142.75,7.0021]
[1750953255076,7.0016,142.77,142.74,7.0025]
[1750953255278,6.73841558,142.78,142.73,37.94]
[1750953255778,6.73841558,142.8,142.73,37.94]
[1750953256178,2.45086526,142.79,142.74,6.73841558]
[1750953256370,44.67841558,142.86,142.76,6.73841558]
[1750953256567,7.69199151,142.85,142.77,40.403]
[1750953256771,6.9984,142.83,142.77,40.403]
[1750953257072,2.45148268,142.82,142.77,40.403]
[1750953257282,6.73841558,142.82,142.79,7.0]
[1750953257774,2.45181479,142.81,142.79,7.0]
[1750953257984,13.73761558,142.82,142.8,6.9998]
[1750953258281,9.45141479,142.81,142.77,40.403]
[1750953258479,6.9996,142.81,142.79,7.0]
[1750953258882,6.9996,142.81,142.77,40.403]
[1750953259283,6.9996,142.81,142.78,7.0006]
[1750953259574,6.9996,142.81,142.77,40.403]
[1750953259780,6.9996,142.81,142.78,7.0004]
[1750953260084,6.9996,142.81,142.77,40.403]
[1750953260378,6.9996,142.81,142.79,7.0002]
[1750953261480,6.999,142.82,142.8,6.9996]
[1750953261680,6.73841558,142.84,142.77,40.403]
[1750953261881,2.45110165,142.83,142.77,40.403]
[1750953262087,2.45110165,142.82,142.77,40.403]
[1750953262289,44.67841558,142.86,142.77,47.14141558]
[1750953262476,2.45139834,142.85,142.77,47.14141558]
[1750953262676,2.45139834,142.84,142.82,6.9988]
[1750953262973,2.45139834,142.83,142.82,6.9988]
[1750953263389,2.45139834,142.83,142.81,6.9992]
[1750953263682,2.45152726,142.82,142.81,6.9992]
[1750953264275,2.45152726,142.82,142.77,40.403]
[1750953264475,6.73841558,142.84,142.77,40.403]
[1750953264671,2.45186596,142.83,142.77,40.403]
[1750953264871,44.67841558,142.86,142.81,6.9993]
[1750953265076,7.70481371,142.85,142.81,6.9993]
[1750953265280,7.70481371,142.84,142.81,6.9993]
[1750953265488,2.45184268,142.83,142.81,6.9993]
[1750953265678,2.45184268,142.82,142.81,6.9993]
[1750953266077,5.26667791,142.85,142.83,6.9981]
[1750953266285,2.45252566,142.84,142.83,6.9981]
[1750953266680,4.8147,142.87,142.82,6.9986]
[1750953266681,6.9974,142.85,142.82,6.9986]
[1750953267383,6.9974,142.85,142.83,6.9983]
[1750953267884,6.9971,142.86,142.83,6.9983]
[1750953269082,6.9975,142.85,142.83,6.9983]
[1750953269677,6.9979,142.84,142.82,6.9984]
[1750953269886,6.73841558,142.86,142.82,6.9984]
[1750953270285,6.9976,142.85,142.81,37.94]
[1750953270488,4.48965812,142.86,142.81,37.94]
[1750953271685,10.24857575,142.88,142.81,37.94]
[1750953271881,4.48965812,142.88,142.81,37.94]
[1750953272282,4.48965812,142.88,142.84,6.9975]
[1750953272283,6.9964,142.87,142.84,6.9975]
[1750953272877,6.9964,142.87,142.85,6.9974]
[1750953274086,6.9964,142.87,142.84,6.9975]
[1750953274391,6.9971,142.86,142.81,37.94]
[1750953274594,6.9971,142.86,142.84,6.9978]
[1750953275285,4.48965812,142.9,142.82,4.48965812]
[1750953275486,4.48965812,142.9,142.82,6.97015812]
[1750953275885,6.9957,142.89,142.87,6.9963]
[1750953276994,6.9952,142.9,142.83,2.3908]
[1750953277494,11.48445812,142.91,142.83,2.3908]
[1750953277688,8.68137654,142.98,142.84,4.48965812]
[1750953277891,5.72276233,142.95,142.93,6.993]
[1750953278088,44.932,142.97,142.89,4.48965812]
[1750953278089,37.94,142.97,142.9,2.4044]
[1750953278390,4.48965812,142.96,142.93,6.9932]
[1750953278596,12.08940777,142.95,142.9,2.4044]
[1750953278796,7.77503504,142.94,142.9,2.4044]
[1750953278994,7.77503504,142.93,142.9,2.4044]
[1750953279189,7.7682544,142.92,142.9,2.4044]
[1750953279396,2.46675205,142.91,142.9,2.4044]
[1750953279792,2.46675205,142.91,142.9,9.3993]
[1750953279997,2.46675205,142.91,142.81,29.40369921]
[1750953280195,37.94,142.93,142.81,29.40369921]
[1750953280196,4.48965812,142.9,142.84,2.4044]
[1750953280389,4.48965812,142.9,142.87,6.996]
[1750953280693,4.48965812,142.91,142.87,6.996]
[1750953280892,2.46783587,142.9,142.85,4.48965812]
[1750953281095,42.42965812,142.93,142.85,4.48965812]
[1750953281296,2.46636337,142.92,142.85,4.48965812]